bitfinex/quotes_SOLUSD_20260109
["timestamp","ask_amount","ask_price","bid_price","bid_amount"]
[1767950472364,9.57511618,138.58,138.53,10.1263129]
[1767950472561,9.55846526,138.59,138.55,0.66529141]
[1767950472757,0.1,138.59,138.56,0.66529141]
[1767950472961,0.1,138.59,138.56,2.90783246]
[1767950473157,0.1,138.59,138.58,0.66529141]
[1767950473366,0.1,138.59,138.57,2.24254105]
[1767950474549,0.1,138.59,138.57,9.45909538]
[1767950474953,0.1,138.59,138.57,7.21655433]
[1767950475576,0.1,138.59,138.57,7.88184574]
[1767950475874,0.1,138.59,138.58,0.66529141]
[1767950476276,0.1,138.59,138.56,0.66529141]
[1767950476582,0.1,138.59,138.57,0.66529141]
[1767950477188,2.24254105,138.58,138.55,0.66529141]
[1767950477486,2.46489502,138.59,138.55,0.66529141]
[1767950478954,7.43789103,138.59,138.55,0.66529141]
[1767950479156,9.68043208,138.59,138.55,0.66529141]
[1767950480178,0.1,138.59,138.55,0.66529141]
[1767950480362,0.1,138.59,138.56,0.66529141]
[1767950480687,0.1,138.59,138.57,0.66529141]
[1767950483685,0.1,138.59,138.57,7.88167812]
[1767950484680,0.1,138.6,138.58,0.66529141]
[1767950485073,105.34254105,138.62,138.59,0.66529141]
[1767950485275,103.1,138.62,138.59,0.66529141]
[1767950485884,105.34254105,138.62,138.59,0.66529141]
[1767950486265,2.24254105,138.6,138.57,0.66529141]
[1767950486689,0.1,138.64,138.6,0.66529141]
[1767950486860,0.1,138.64,138.6,2.90783246]
[1767950486861,0.80339014,138.64,138.6,2.90783246]
[1767950487186,0.1,138.64,138.61,0.66529141]
[1767950490182,2.24254105,138.66,138.62,0.66529141]
[1767950490383,0.1,138.67,138.65,0.66529141]
[1767950490682,0.1,138.68,138.67,0.66529141]
[1767950491797,11.2341327,138.69,138.65,2.24254105]
[1767950491978,11.2341327,138.69,138.66,7.21180673]
[1767950492306,11.2341327,138.69,138.66,9.45434778]
[1767950492601,11.2341327,138.69,138.67,7.21124916]
[1767950493999,0.70731828,138.7,138.67,7.21124916]
[1767950496100,2.24254105,138.72,138.67,9.45379021]
[1767950496395,0.67345239,138.71,138.66,7.21167207]
[1767950496604,0.67345239,138.71,138.64,13.16]
[1767950496605,2.91599344,138.68,138.64,7.2125443]
[1767950497187,0.67345239,138.68,138.64,7.2125443]
[1767950497390,2.91599344,138.68,138.64,7.2125443]
[1767950497998,2.91599344,138.68,138.64,2.24254105]
[1767950498392,0.67345239,138.7,138.65,2.24254105]
[1767950498589,0.67345239,138.7,138.67,2.24254105]
[1767950499604,0.67345239,138.7,138.68,2.24254105]
[1767950499799,0.67345239,138.72,138.69,2.24254105]
[1767950500102,0.77345239,138.73,138.67,25.23977788]
[1767950500408,0.67345239,138.72,138.69,2.24254105]
[1767950501600,0.67345239,138.72,138.69,9.4526843]
[1767950502292,0.67345239,138.72,138.68,7.21065996]
[1767950502694,0.67345239,138.72,138.68,9.45320101]
[1767950503217,0.67345239,138.72,138.67,18.02841277]
[1767950503218,2.91599344,138.71,138.66,13.16]
[1767950503418,2.91599344,138.71,138.66,22.61402133]
[1767950504114,0.67345239,138.71,138.66,22.61402133]
[1767950504413,2.91599344,138.71,138.66,22.61402133]
[1767950504611,0.67345239,138.7,138.66,20.37148028]
[1767950504808,0.67345239,138.7,138.66,22.61402133]
[1767950505814,0.67345239,138.7,138.66,20.37148028]
[1767950507637,0.70763458,138.72,138.66,20.37148028]
[1767950509020,0.70763458,138.72,138.66,38.40119324]
[1767950510403,0.1,138.73,138.66,38.40119324]
[1767950510614,0.80763458,138.73,138.66,38.40119324]
[1767950510817,0.80763458,138.73,138.67,0.28432314]
[1767950511026,0.80763458,138.73,138.68,7.21084511]
[1767950511801,0.1,138.73,138.68,25.23795788]
[1767950512330,0.80763458,138.73,138.68,25.23795788]
[1767950516319,0.80763458,138.73,138.69,13.44432314]
[1767950516320,0.1,138.73,138.69,13.44432314]
[1767950517814,0.1,138.73,138.7,7.20980533]
[1767950519322,0.1,138.73,138.7,25.23431866]
[1767950520440,0.1,138.73,138.7,7.20980533]
[1767950520624,0.80763458,138.73,138.7,7.20980533]
[1767950521625,0.80763458,138.73,138.69,13.16]
[1767950521917,0.80763458,138.73,138.67,7.21094856]
[1767950521918,0.70763458,138.72,138.67,7.21094856]
[1767950522119,0.70763458,138.72,138.66,20.37155168]
[1767950522313,0.70763458,138.72,138.65,7.21224034]
[1767950522513,0.70763458,138.72,138.65,7.21231613]
[1767950522940,0.70763458,138.72,138.64,13.16]
[1767950523230,0.69339162,138.71,138.62,7.21361932]
[1767950523635,0.69339162,138.71,138.61,13.16]
[1767950523636,0.69339162,138.68,138.61,13.16]
[1767950524025,0.69339162,138.68,138.61,20.37441047]
[1767950524838,0.69339162,138.68,138.61,38.41062719]
[1767950525022,0.69339162,138.67,138.61,38.41062719]
[1767950525222,0.6633916,138.67,138.61,38.44062721]
[1767950525627,0.6633916,138.67,138.62,0.03000002]
[1767950528640,0.69339162,138.68,138.62,0.03000002]
[1767950529536,0.69339162,138.68,138.63,0.03000002]
[1767950531946,0.69339162,138.68,138.63,7.21344586]
[1767950532262,0.69339162,138.68,138.63,7.24344588]
[1767950535539,0.69339162,138.68,138.63,25.27706053]
[1767950537664,0.69339162,138.68,138.63,7.21344586]
[1767950538349,0.69339162,138.68,138.63,7.24344588]
[1767950539646,0.69339162,138.68,138.63,18.06361467]
[1767950545871,0.69339162,138.67,138.63,25.27706053]
[1767950550257,0.69339162,138.7,138.65,0.03000002]
[1767950551482,0.69339162,138.72,138.65,0.03000002]
[1767950551780,0.69339162,138.72,138.66,0.03000002]
[1767950552073,0.69339162,138.72,138.68,0.03000002]
[1767950552277,0.69339162,138.72,138.66,25.24159814]
[1767950552458,0.69339162,138.71,138.66,7.21188518]
[1767950553871,0.72220872,138.7,138.65,13.16]
[1767950554455,0.72220872,138.7,138.64,7.2126229]
[1767950556261,0.72220872,138.68,138.63,7.24344588]
[1767950556458,0.6922087,138.68,138.63,7.24344588]
[1767950556770,0.6922087,138.68,138.63,7.21344586]
[1767950559483,0.6622087,138.68,138.63,7.21344586]
[1767950561377,0.6622087,138.68,138.63,7.3034459]
[1767950561683,0.72220872,138.67,138.63,7.3034459]
[1767950562280,0.72220872,138.67,138.62,7.21383735]
[1767950563073,0.72220872,138.67,138.61,7.30448672]
[1767950563303,0.72220872,138.67,138.61,25.34070344]
[1767950564594,0.72220872,138.67,138.62,0.09000004]
[1767950564965,0.69220871,138.67,138.62,0.09000004]
[1767950565608,103.1,138.72,138.63,0.12000005]
[1767950565770,116.26,138.72,138.63,0.12000005]
[1767950566090,116.26,138.72,138.65,0.12000005]
[1767950566291,110.30898239,138.72,138.65,0.12000005]
[1767950566593,7.20898239,138.72,138.65,0.12000005]
[1767950566771,0.5,138.71,138.65,0.12000005]
[1767950566970,0.72159485,138.7,138.66,7.21188518]
[1767950571191,0.70132104,138.69,138.64,7.21286506]
[1767950572193,0.70132104,138.69,138.65,0.66145688]
[1767950572498,0.70132104,138.69,138.64,7.21286506]
[1767950572699,0.72139212,138.68,138.63,7.21344586]
[1767950572891,0.66139211,138.68,138.63,25.24706051]
[1767950573272,0.66139211,138.68,138.63,25.90851739]
[1767950573695,0.66139211,138.68,138.64,0.66145688]
[1767950574279,0.66139211,138.68,138.63,7.87490274]
[1767950576499,0.66139211,138.68,138.64,0.66145688]
[1767950578101,0.66139211,138.68,138.65,7.21240533]
[1767950580705,0.66139211,138.68,138.65,0.66145688]
[1767950581805,0.72159485,138.69,138.65,0.66145688]
[1767950582007,0.72159485,138.7,138.65,0.66145688]
[1767950582698,0.72159485,138.7,138.66,7.87334206]
[1767950583013,103.1,138.72,138.67,0.67578838]
[1767950583014,103.82120726,138.72,138.67,0.67578838]
[1767950584096,103.82120726,138.72,138.68,7.88663349]
[1767950584698,0.64230475,138.71,138.67,7.88691099]
[1767950585113,0.64230475,138.71,138.67,0.67578838]
[1767950585294,0.64230475,138.71,138.65,21.0480706]
[1767950586120,0.1,138.73,138.67,0.67578838]
[1767950586289,0.1,138.73,138.69,0.67578838]
[1767950586917,0.82120726,138.75,138.71,0.67578838]
[1767950587100,0.1,138.75,138.71,0.67578838]
[1767950588397,0.1,138.75,138.72,0.67578838]
[1767950588595,0.74230475,138.75,138.71,7.20900615]
[1767950588807,0.74230475,138.75,138.7,0.67578838]
[1767950588808,0.74230475,138.75,138.7,7.8853112]
[1767950589615,0.74230475,138.75,138.68,13.83578838]
[1767950589909,0.74230475,138.75,138.67,0.67578838]
[1767950589910,0.72041823,138.74,138.67,0.67578838]
[1767950590103,0.72041823,138.74,138.67,7.88691948]
[1767950590495,0.64308589,138.72,138.67,7.88691948]
[1767950591704,0.7196449,138.71,138.67,7.88691948]
[1767950596002,145.25240808,138.77,138.73,0.67578838]
[1767950596003,0.1,138.77,138.73,0.67578838]
[1767950596203,7.30521463,138.79,138.72,13.44432314]
[1767950596204,0.1,138.79,138.72,13.44432314]
[1767950596406,0.1,138.82,138.74,5.24808414]
[1767950596609,0.07354985,138.84,138.74,11.30045258]
[1767950597012,0.79475711,138.84,138.74,11.15829101]
[1767950597204,0.79475711,138.84,138.74,5.10592257]
[1767950597611,0.07354985,138.84,138.74,5.10592257]
[1767950598116,0.79475711,138.84,138.77,0.67578838]
[1767950598418,0.79475711,138.84,138.78,0.67578838]
[1767950600319,0.72120726,138.83,138.78,0.67578838]
[1767950601021,0.72120726,138.83,138.78,7.20551149]
[1767950601223,0.72120726,138.83,138.77,7.88176072]
[1767950601518,0.72120726,138.83,138.75,0.67578838]
[1767950601927,0.72120726,138.81,138.75,7.88268452]
[1767950602724,0.72120726,138.8,138.75,7.88268452]
[1767950604017,0.72120726,138.8,138.75,7.20689614]
[1767950604537,0.72120726,138.8,138.76,0.67578838]
[1767950604710,0.72120726,138.8,138.76,7.88203308]
[1767950607828,0.79475711,138.84,138.77,0.67578838]
[1767950609034,7.99746767,138.84,138.79,0.67578838]
[1767950609717,0.72120726,138.83,138.79,0.67578838]
[1767950610312,0.07354985,138.84,138.79,0.67578838]
[1767950610507,0.07354985,138.84,138.8,0.67578838]
[1767950611211,0.07354985,138.84,138.8,7.88011606]
[1767950611928,0.79475711,138.84,138.79,7.20492759]
[1767950612321,0.79475711,138.84,138.79,7.88071597]
[1767950612921,0.70537701,138.83,138.79,7.88071597]
[1767950613115,0.70537701,138.83,138.78,7.88095546]
[1767950613431,0.70537701,138.83,138.78,0.67548297]
[1767950613818,0.70537701,138.83,138.78,7.8806703]
[1767950614525,0.70537701,138.83,138.79,7.88036729]
[1767950614831,7.98151583,138.84,138.8,0.67548297]
[1767950616134,7.98146227,138.84,138.8,0.67548297]
[1767950616319,0.77892686,138.84,138.8,7.87992775]
[1767950619738,7.98151834,138.84,138.8,0.67548297]
[1767950620234,0.77892686,138.84,138.8,7.88006928]
[1767950624346,0.07354985,138.84,138.81,0.67548297]
[1767950625139,0.07354985,138.84,138.8,0.28432314]
[1767950625140,0.70537701,138.87,138.83,0.67548297]
[1767950625348,0.70537701,138.87,138.81,0.67548297]
[1767950626558,0.70537701,138.87,138.8,0.28432314]
[1767950626559,0.70537701,138.87,138.83,0.67548297]
[1767950628144,0.65660113,138.86,138.81,7.88656866]
[1767950628346,7.85830057,138.86,138.81,7.88656866]
[1767950628545,0.65660113,138.85,138.81,7.88656866]
[1767950630758,0.65660113,138.84,138.8,7.20451717]
[1767950631052,0.65660113,138.84,138.8,7.88719094]
[1767950631653,0.65660113,138.84,138.8,0.68267377]
[1767950632859,0.65660113,138.84,138.8,7.88706454]
[1767950634435,0.65660113,138.84,138.81,0.68267377]
[1767950634964,0.65660113,138.86,138.82,7.88624674]
[1767950635962,0.65660113,138.86,138.82,7.20357297]
[1767950636164,0.65660113,138.86,138.81,7.88653854]
[1767950636333,0.65660113,138.86,138.82,0.68267377]
[1767950637558,0.65660113,138.86,138.82,7.88585315]
[1767950638988,103.1,138.88,138.83,0.68267377]
[1767950639187,0.65660113,138.89,138.84,0.68267377]
[1767950639662,0.65660113,138.88,138.84,0.68267377]
[1767950640847,0.65660113,138.88,138.84,7.88494012]
[1767950641480,13.44351149,138.91,138.86,0.68267377]
[1767950641795,0.65660113,138.9,138.86,0.68267377]
[1767950642765,0.65660113,138.9,138.86,7.88411168]
[1767950643667,7.85605766,138.9,138.86,0.68267377]
[1767950643864,0.66846201,138.89,138.86,0.68267377]
[1767950644182,0.66846201,138.87,138.8,7.92287482]
[1767950644760,0.66846201,138.85,138.8,7.92287482]
[1767950645858,0.66846201,138.83,138.78,0.28432314]
[1767950646175,0.66846201,138.83,138.77,7.92444651]
[1767950646566,0.66846201,138.83,138.78,0.71860195]
[1767950647968,0.66846201,138.82,138.78,0.71860195]
[1767950650191,7.87224817,138.82,138.78,0.71860195]
[1767950651294,0.66846201,138.81,138.78,0.71860195]
[1767950651987,0.66846201,138.81,138.77,7.92444651]
[1767950652385,0.66846201,138.81,138.78,0.71860195]
[1767950657994,0.63846201,138.81,138.78,0.71860195]
[1767950658590,7.20357955,138.82,138.78,0.71860195]
[1767950659794,7.20357955,138.82,138.77,0.71860195]
[1767950659981,0.66846201,138.81,138.76,7.92517946]
[1767950660784,0.66846201,138.81,138.77,7.20606946]
[1767950665095,0.66846201,138.81,138.77,0.71860195]
[1767950666399,0.63846201,138.81,138.77,7.92445791]
[1767950667476,0.63846201,138.81,138.78,0.71860195]
[1767950669399,0.63846201,138.81,138.75,18.3018978]
[1767950669400,0.66846201,138.79,138.75,0.71860195]
[1767950670796,0.66846201,138.79,138.73,0.71860195]
[1767950671279,0.66846201,138.77,138.72,7.20865269]
[1767950671680,0.66846201,138.76,138.72,7.92725464]
[1767950671902,0.66846201,138.79,138.73,0.71860195]
[1767950672412,13.80846201,138.79,138.74,0.71860195]
[1767950673489,13.80846201,138.79,138.74,7.92596785]
[1767950674107,21.01364361,138.79,138.74,7.92596785]
[1767950674827,0.68956552,138.78,138.74,7.92596785]
[1767950675395,7.89542657,138.78,138.75,0.67868797]
[1767950675602,0.68956552,138.77,138.73,7.88689818]
[1767950676614,0.68956552,138.77,138.74,0.67868797]
[1767950684328,0.68956552,138.81,138.75,0.67868797]
[1767950684614,13.82956552,138.79,138.75,0.67868797]
[1767950685001,0.68956552,138.78,138.75,0.67868797]
[1767950690125,0.66412949,138.77,138.74,0.66806483]
[1767950690622,0.66412949,138.77,138.72,7.87657045]
[1767950690826,0.66412949,138.77,138.73,0.66806483]
[1767950693349,7.8704312,138.77,138.73,0.66806483]
[1767950693551,0.66412949,138.77,138.73,7.87620401]
[1767950693710,7.8703323,138.77,138.73,7.87620401]
[1767950693915,7.8703323,138.77,138.73,0.66806483]
[1767950696334,0.66412949,138.76,138.73,0.66806483]
[1767950699049,0.66412949,138.76,138.73,7.87624655]
[1767950699251,7.86938743,138.79,138.74,0.66806483]
[1767950699420,21.00938743,138.79,138.74,0.66806483]
[1767950699626,0.66412949,138.78,138.74,0.66806483]
[1767950701354,7.86988846,138.78,138.74,0.66806483]
[1767950701553,0.66412949,138.77,138.74,0.66806483]
[1767950702252,0.66412949,138.77,138.73,0.66806483]
[1767950703442,0.66412949,138.77,138.73,7.87630667]
[1767950703648,0.69241633,138.78,138.74,0.69337751]
[1767950703840,0.69241633,138.79,138.74,0.69337751]
[1767950705644,0.69241633,138.79,138.75,0.69337751]
[1767950710546,7.89620822,138.82,138.76,0.69337751]
[1767950710869,0.69241633,138.81,138.77,0.69337751]
[1767950711730,0.69241633,138.81,138.78,7.20564922]
[1767950711957,0.69241633,138.82,138.79,0.69337751]
[1767950712253,0.69241633,138.82,138.78,7.89902673]
[1767950713266,0.69241633,138.82,138.79,0.69337751]
[1767950713650,0.69241633,138.82,138.78,0.69337751]
[1767950715262,0.69241633,138.82,138.77,7.89954599]
[1767950715465,0.69241633,138.82,138.78,0.69337751]
[1767950717270,0.69241633,138.81,138.76,7.49081583]
[1767950717573,0.69241633,138.8,138.76,7.8998702]
[1767950719857,0.69241633,138.79,138.75,0.69337751]
[1767950720364,0.69241633,138.79,138.76,7.90003199]
[1767950720558,0.69241633,138.8,138.77,0.69337751]
[1767950723570,7.89670313,138.81,138.77,0.69337751]
[1767950724679,0.69241633,138.8,138.77,0.69337751]
[1767950725577,7.89708363,138.8,138.77,0.69337751]
[1767950726079,0.69241633,138.79,138.75,0.69337751]
[1767950726450,0.66241634,138.79,138.75,0.69337751]
[1767950727673,0.66241634,138.79,138.75,7.90057718]
[1767950728353,0.66241634,138.79,138.76,0.69337751]
[1767950729770,7.89650825,138.81,138.76,0.69337751]
[1767950730174,0.69241633,138.8,138.72,13.14]
[1767950731683,0.69241633,138.8,138.75,7.20678684]
[1767950732059,121.10690117,138.84,138.76,0.69337751]
[1767950732259,134.24690117,138.84,138.76,0.69337751]
[1767950733179,7.20305409,138.83,138.77,0.70525991]
[1767950733970,0.65941305,138.82,138.77,0.70525991]
[1767950736091,0.65941305,138.82,138.77,7.91128534]
[1767950736092,0.65941305,138.81,138.77,7.91128534]
[1767950737384,0.65941305,138.82,138.78,7.91084297]
[1767950740383,0.65941305,138.82,138.79,0.70525991]
[1767950740792,0.65941305,138.83,138.79,0.70525991]
[1767950744876,0.65941305,138.82,138.79,0.70525991]
[1767950745085,0.62941306,138.82,138.79,0.70525991]
[1767950748678,0.71249697,138.86,138.8,0.68531197]
[1767950749400,0.71249697,138.85,138.8,0.68531197]
[1767950750707,7.91482433,138.85,138.8,0.68531197]
[1767950750912,0.71249697,138.84,138.8,0.68531197]
[1767950752299,0.71249697,138.84,138.8,7.88988662]
[1767950753721,0.71249697,138.84,138.81,0.68531197]
[1767950754715,0.71249697,138.84,138.8,7.88988662]
[1767950759393,134.24328405,138.87,138.8,7.88988662]
[1767950759394,0.71249697,138.85,138.81,0.68531197]
[1767950760811,0.71249697,138.85,138.81,7.88939915]
[1767950761113,0.71249697,138.85,138.81,7.20408718]
[1767950761512,0.71249697,138.84,138.8,7.20450934]
[1767950764018,0.71249697,138.84,138.81,0.67997907]
[1767950769827,0.71249697,138.84,138.81,7.88389578]
[1767950770125,0.71249697,138.84,138.81,0.67997907]
[1767950775609,0.71249697,138.84,138.8,0.67997907]
[1767950777727,0.71249697,138.84,138.8,7.8844036]
[1767950779739,0.71249697,138.84,138.81,0.67997907]
[1767950780119,0.71249697,138.84,138.81,7.88394399]
[1767950780520,0.67305811,138.85,138.82,0.67997907]
[1767950783339,0.67305811,138.85,138.81,0.67997907]
[1767950785327,0.67305811,138.85,138.82,7.88355204]
[1767950787443,0.67305811,138.86,138.83,0.67997907]
[1767950787644,0.67305811,138.86,138.82,7.20357297]
[1767950787645,0.67305811,138.86,138.82,7.88355204]
[1767950787946,0.67305811,138.86,138.82,7.20357297]
[1767950788120,0.67305811,138.86,138.82,7.88355204]
[1767950788848,0.67305811,138.86,138.83,0.67997907]
[1767950789042,0.67305811,138.87,138.83,0.67997907]
[1767950790340,0.67305811,138.88,138.84,0.67997907]
[1767950790650,0.67305811,138.89,138.84,0.67997907]
[1767950790942,0.67305811,138.89,138.84,0.28432314]
[1767950791150,0.67305811,138.89,138.85,0.67997907]
[1767950791353,0.67305811,138.9,138.85,0.67997907]
[1767950791643,0.67305811,138.9,138.84,0.96430221]
[1767950791843,0.67305811,138.89,138.83,25.89022305]
[1767950792638,0.67305811,138.88,138.83,25.89022305]
[1767950795752,0.67305811,138.88,138.84,0.68718655]
[1767950795953,0.69847725,138.89,138.85,0.68718655]
[1767950797844,0.69847725,138.89,138.85,7.8888369]
[1767950798234,0.69847725,138.89,138.85,0.68718655]
[1767950798435,0.69847725,138.88,138.84,7.88951544]
[1767950798637,0.69847725,138.88,138.85,0.68718655]
[1767950799653,0.69847725,138.88,138.84,0.68718655]
[1767950800353,7.89899048,138.88,138.84,0.68718655]
[1767950801861,0.69847725,138.88,138.84,7.88970901]
[1767950802642,0.69847725,138.88,138.85,0.68718655]
[1767950803453,7.89897739,138.88,138.85,0.68718655]
[1767950803849,0.69847725,138.9,138.85,0.68718655]
[1767950804054,0.69847725,138.9,138.86,7.88868446]
[1767950806857,13.48538761,138.91,138.87,0.68718655]
[1767950807355,12.78691036,138.91,138.87,0.68718655]
[1767950808859,12.78691036,138.91,138.89,0.67462636]
[1767950810557,12.78691036,138.91,138.88,7.20046082]
[1767950810558,11.96028769,138.91,138.9,0.10162267]
[1767950811144,7.29704528,138.95,138.9,25.19750712]
[1767950811145,0.1,138.95,138.9,25.19750712]
[1767950811547,0.1,138.95,138.91,13.42432314]
[1767950813052,0.1,138.95,138.91,20.62285767]
[1767950815748,0.1,138.95,138.92,20.33793565]
[1767950819469,0.1,138.95,138.88,0.67462636]
[1767950819662,0.1,138.95,138.89,0.67462636]
[1767950819968,0.1,138.95,138.92,0.67462636]
[1767950820371,0.75997757,138.95,138.92,0.67462636]
[1767950821663,0.1,138.95,138.92,0.67462636]
[1767950821870,0.1,138.95,138.93,0.67462636]
[1767950822664,0.75997757,138.95,138.92,0.66568521]
[1767950822870,0.1,138.95,138.92,0.66568521]
[1767950824376,0.67521733,138.94,138.91,7.48307482]
[1767950824553,0.1,138.95,138.92,0.66568521]
[1767950824749,0.24296229,138.95,138.92,0.66568521]
[1767950825172,0.1,138.95,138.92,0.66568521]
[1767950825363,0.67521733,138.94,138.91,8.14876003]
[1767950826156,0.67521733,138.94,138.9,20.33926719]
[1767950826774,0.67521733,138.94,138.9,7.19926719]
[1767950826972,0.67521733,138.94,138.9,20.33926719]
[1767950828372,0.14828484,138.93,138.9,20.33939813]
[1767950829087,0.14828484,138.93,138.89,20.62403266]
[1767950829979,7.87801061,138.94,138.9,0.66568521]
[1767950830376,0.68059364,138.94,138.91,0.66568521]
[1767950831576,7.97767073,138.95,138.91,0.66568521]
[1767950834802,0.14296229,138.94,138.91,0.66568521]
[1767950835679,7.29707709,138.95,138.91,0.66568521]
[1767950835998,7.97767073,138.95,138.91,0.66568521]
[1767950837078,0.14296229,138.94,138.91,0.66568521]
[1767950839575,0.14296229,138.94,138.9,7.86500128]
[1767950841398,7.97767073,138.95,138.91,0.66568521]
[1767950842203,0.14296229,138.94,138.91,0.66568521]
[1767950842388,0.78059364,138.95,138.91,0.66568521]
[1767950843600,0.1,138.95,138.92,0.66568521]
[1767950845903,0.24296229,138.95,138.92,0.66568521]
[1767950846298,0.1,138.95,138.92,0.66568521]
[1767950846604,0.1,138.95,138.93,0.66568521]
[1767950849312,0.1,138.95,138.93,7.8635285]
[1767950850613,0.1,138.95,138.93,0.66568521]
[1767950850806,0.77521733,138.95,138.92,13.80568521]
[1767950851005,0.1,138.95,138.92,13.80568521]
[1767950852324,7.439829,138.95,138.92,13.80568521]
[1767950853017,0.24296229,138.95,138.92,13.80568521]
[1767950855205,0.1,138.95,138.93,0.70072804]
[1767950855408,0.67530296,138.94,138.92,20.33830501]
[1767950855712,0.1,138.95,138.93,0.70072804]
[1767950858200,0.1,138.95,138.94,0.70072804]
[1767950858408,0.67530296,138.96,138.93,7.8985868]
[1767950859627,0.5385917,138.97,138.94,0.70072804]
[1767950860215,0.5385917,138.97,138.94,7.89801216]
[1767950860522,0.5385917,138.97,138.95,0.70072804]
[1767950863418,0.1,138.98,138.95,0.70072804]
[1767950863419,0.1,138.98,138.97,0.70072804]
[1767950864013,0.1,138.98,138.96,0.70072804]
[1767950865132,0.68068102,139.03,138.97,0.70072804]
[1767950866029,0.68068102,139.03,138.99,0.70072804]
[1767950866924,0.67608157,139.02,138.99,0.66818461]
[1767950868827,0.71310758,139.03,138.99,0.66818461]
[1767950869028,7.90546546,139.04,139.0,0.66818461]
[1767950869440,32.86911331,139.06,139.0,0.66818461]
[1767950869441,0.64397927,139.03,139.0,0.66818461]
[1767950869740,0.71310758,139.04,139.0,0.66818461]
[1767950870934,7.90529874,139.04,139.0,0.66818461]
[1767950871320,0.64397927,139.03,139.0,0.66818461]
[1767950871524,0.61397928,139.03,139.0,0.66818461]
[1767950872940,0.58397929,139.03,139.0,0.66818461]
[1767950874555,0.5539793,139.03,139.0,0.66818461]
[1767950875243,7.74667689,139.03,139.0,0.66818461]
[1767950875418,0.5539793,139.03,139.0,0.66818461]
[1767950875620,7.1923813,139.04,139.0,0.66818461]
[1767950876547,7.90548888,139.04,139.0,0.66818461]
[1767950877646,0.5548793,139.03,139.0,0.66818461]
[1767950877846,0.52487931,139.03,139.0,0.66818461]
[1767950879645,0.49487932,139.03,139.0,0.66818461]
[1767950879831,7.1923813,139.04,139.0,0.66818461]
[1767950880236,13.12,139.05,138.96,7.19610365]
[1767950880630,13.12,139.05,138.97,7.19573573]
[1767950880829,13.12,139.05,138.96,7.19613252]
[1767950881230,25.17261219,139.04,138.96,7.19613252]
[1767950881437,0.99743072,139.0,138.94,0.66818461]
[1767950881642,0.71310758,138.98,138.94,0.66818461]
[1767950882241,0.71310758,138.98,138.89,0.28432314]
[1767950882430,0.71310758,138.98,138.89,7.19972041]
[1767950882825,0.71310758,138.98,138.88,7.20023847]
[1767950883220,25.18529178,138.97,138.86,25.20460673]
[1767950883441,0.71986129,138.96,138.87,0.66718133]
[1767950883726,0.71986129,138.92,138.83,0.66718133]
[1767950883954,0.71986129,138.9,138.82,0.66718133]
[1767950884446,0.71986129,138.9,138.83,0.66718133]
[1767950884747,0.71986129,138.9,138.84,0.66718133]
[1767950885952,0.71986129,138.88,138.84,0.66718133]
[1767950887048,7.20097933,138.87,138.84,0.66718133]
[1767950887839,7.92084062,138.87,138.82,0.66718133]
[1767950888039,7.92084062,138.87,138.8,31.33074049]
[1767950888040,0.71986129,138.86,138.8,0.86718133]
[1767950888230,0.71986129,138.86,138.81,0.66718133]
[1767950888647,7.92044198,138.88,138.81,0.66718133]
[1767950888844,7.92044198,138.88,138.8,0.2]
[1767950888845,7.92044198,138.88,138.83,0.66718133]
[1767950889652,0.71986129,138.88,138.84,0.66718133]
[1767950890050,7.92032848,138.88,138.84,0.66718133]
[1767950891257,0.71986129,138.9,138.85,0.66718133]
[1767950891439,0.71986129,138.91,138.85,0.66718133]
[1767950892433,7.9190612,138.91,138.87,0.66718133]
[1767950892650,0.71986129,138.9,138.85,21.00902686]
[1767950892851,7.19919991,138.91,138.86,0.66718133]
[1767950893061,7.9190612,138.91,138.86,0.66718133]
[1767950893969,7.91880832,138.91,138.87,0.66718133]
[1767950894453,0.71986129,138.91,138.87,0.66718133]
[1767950895643,0.71986129,138.93,138.87,0.8093429]
[1767950895964,316.51928573,138.97,138.89,0.66718133]
[1767950895965,7.91617677,138.96,138.89,0.66718133]
[1767950896166,7.91617677,138.96,138.91,0.66718133]
[1767950898569,0.71986129,138.95,138.89,0.66718133]
[1767950898746,0.71986129,138.95,138.89,13.80718133]
[1767950900143,7.19735137,138.94,138.89,13.80718133]
[1767950900349,7.91721266,138.94,138.89,13.80718133]
[1767950900661,7.91721266,138.94,138.89,21.00697047]
[1767950901268,7.91721266,138.94,138.89,7.86697047]
[1767950901444,7.91721266,138.94,138.89,21.00697047]
[1767950901644,0.71986129,138.93,138.89,20.33978914]
[1767950902062,0.71986129,138.96,138.89,21.00697047]
[1767950903068,0.71986129,138.96,138.89,20.33978914]
[1767950903851,0.71986129,138.94,138.89,20.33978914]
[1767950905067,7.19683339,138.95,138.89,20.33978914]
[1767950905068,0.71986129,138.93,138.89,20.33978914]
[1767950906760,0.71986129,138.92,138.88,0.66718133]
[1767950906965,0.71986129,138.92,138.88,13.80718133]
[1767950907466,0.71986129,138.92,138.87,0.66718133]
[1767950907652,0.71986129,138.92,138.88,0.66718133]
[1767950907859,0.71986129,138.92,138.88,7.86749288]